bitfinex/quotes_ETHUSD_20241104
["timestamp","ask_amount","ask_price","bid_price","bid_amount"]
[1730732647827,0.0814626,2451.5,2451.1,4.31060633]
[1730732647982,4.1606226,2451.5,2451.2,0.23089633]
[1730732648183,4.1606226,2451.5,2451.0,7.07994]
[1730732648412,4.1606226,2451.5,2451.1,0.2309183]
[1730732648593,0.0814626,2451.5,2451.2,0.2309183]
[1730732648918,0.0814626,2451.5,2451.0,7.44942717]
[1730732648919,0.0814626,2451.5,2451.0,7.07994]
[1730732649124,4.1606126,2451.5,2451.1,0.23091411]
[1730732649328,4.1606126,2451.5,2451.2,0.23091411]
[1730732649531,0.0814626,2451.5,2451.0,7.07987]
[1730732649689,0.0814626,2451.5,2451.1,4.31065256]
[1730732649896,4.1606826,2451.5,2451.2,0.23094256]
[1730732650133,0.0814626,2451.5,2451.0,3.36952836]
[1730732650320,4.1596026,2452.1,2451.5,4.07909]
[1730732650635,4.1596026,2452.1,2451.6,4.30989536]
[1730732650636,0.98055986,2452.1,2451.6,4.30989536]
[1730732650839,0.98055986,2452.1,2451.5,4.07913]
[1730732650840,4.07838,2452.0,2451.5,4.07913]
[1730732651141,0.0814626,2451.9,2451.7,4.07866]
[1730732651449,4.1596926,2452.1,2451.6,4.07894]
[1730732651791,0.0814626,2452.2,2451.7,0.23090436]
[1730732651996,4.93182837,2452.9,2452.2,4.07788]
[1730732651997,0.0814626,2452.4,2452.2,4.07788]
[1730732652296,0.0814626,2452.8,2452.0,3.0]
[1730732652499,0.49730186,2452.8,2452.1,4.30873866]
[1730732652715,0.49730186,2452.8,2451.9,0.8251]
[1730732652716,0.0814626,2452.8,2451.9,0.8251]
[1730732652951,4.07722,2452.7,2452.0,0.23075834]
[1730732653118,4.1588126,2452.6,2452.1,4.30879834]
[1730732653291,4.07755,2452.5,2452.1,3.0]
[1730732653496,0.0814626,2452.4,2452.0,3.0]
[1730732653927,0.0814626,2452.4,2452.1,4.07812]
[1730732654129,4.1590426,2452.5,2452.0,7.07827]
[1730732654345,0.0814626,2452.5,2452.1,4.07809]
[1730732654507,0.0814626,2452.5,2452.1,4.07801]
[1730732654713,0.0814626,2452.7,2452.3,4.0777]
[1730732654946,4.1586926,2452.7,2451.9,3.8251]
[1730732655099,4.07758,2452.5,2452.1,3.0]
[1730732655303,0.0814626,2452.4,2452.1,3.0]
[1730732655504,4.1590026,2452.5,2452.1,3.0]
[1730732655741,4.07764,2452.4,2452.1,3.0]
[1730732655950,0.0814626,2452.5,2452.1,3.0]
[1730732656249,4.07722,2452.7,2452.2,4.07784]
[1730732656403,0.0814626,2452.6,2452.3,4.07777]
[1730732656605,0.0814626,2452.7,2452.3,4.07777]
[1730732657582,4.1586026,2452.7,2452.2,4.07784]
[1730732658571,4.1586226,2452.7,2452.2,4.07784]
[1730732659069,4.1586226,2452.7,2452.1,7.07809]
[1730732659070,4.07745,2452.6,2452.1,7.07809]
[1730732659272,0.0814626,2452.5,2452.1,7.07809]
[1730732659476,0.0814626,2452.5,2452.1,7.07813]
[1730732659831,0.0814626,2452.7,2452.4,4.07754]
[1730732660174,0.0814626,2452.7,2452.2,4.07784]
[1730732660739,0.0814626,2452.7,2452.3,4.0777]
[1730732661080,0.0814626,2452.8,2452.5,4.07745]
[1730732661290,4.07582,2453.5,2452.5,4.07745]
[1730732661291,0.0814626,2453.0,2452.8,4.07686]
[1730732661491,0.0814626,2453.3,2452.6,0.08154439]
[1730732661778,0.407582,2453.4,2452.6,4.0773]
[1730732661779,0.0814626,2453.2,2452.6,4.0773]
[1730732661973,0.0814626,2453.2,2452.8,4.07687]
[1730732662147,4.1577926,2453.2,2452.6,4.0773]
[1730732662352,4.49232926,2453.1,2452.6,8.15452]
[1730732662684,0.0814626,2453.0,2452.6,4.07721]
[1730732662850,4.1581226,2453.0,2452.6,4.07721]
[1730732663042,0.0814626,2453.0,2452.6,4.07721]
[1730732663549,0.41577926,2453.1,2452.8,4.07694]
[1730732664151,0.4890446,2453.4,2453.0,4.07656]
[1730732664366,0.4890446,2453.4,2453.1,4.07637]
[1730732665287,0.407582,2453.4,2453.1,4.07637]
[1730732665590,0.407582,2453.4,2453.0,4.86566]
[1730732665888,0.407582,2453.4,2453.0,4.86564]
[1730732666663,0.55,2453.1,2452.1,0.7542]
[1730732666995,4.07775,2452.4,2451.6,0.8008]
[1730732667145,0.0814626,2452.3,2451.8,4.07853]
[1730732667546,4.07806,2452.2,2451.6,4.87967]
[1730732667796,0.0814626,2452.1,2451.6,0.8008]
[1730732668080,4.07776,2452.4,2451.6,0.8008]
[1730732668081,4.1591126,2452.4,2451.9,4.0783]
[1730732668260,4.65673386,2452.4,2451.9,4.0783]
[1730732668459,4.65673386,2452.4,2451.9,8.15666]
[1730732668654,0.0814626,2452.4,2451.9,4.0783]
[1730732668859,4.07781,2452.3,2451.8,4.07856]
[1730732669082,4.07781,2452.3,2451.6,4.87962]
[1730732669083,0.0814626,2452.2,2451.6,4.87962]
[1730732669261,0.0814626,2452.4,2451.8,4.07863]
[1730732669657,4.1592126,2452.4,2451.9,4.07838]
[1730732669867,5.59224893,2452.4,2451.2,4.0795]
[1730732670100,4.07888,2451.7,2451.2,0.8229]
[1730732670245,4.1605326,2451.6,2451.1,0.22941409]
[1730732670585,4.1605326,2451.6,2450.9,4.90293]
[1730732670586,4.07928,2451.5,2450.9,4.90293]
[1730732670783,0.0814626,2451.5,2451.0,4.07985]
[1730732670987,4.0788,2451.7,2451.0,0.08159174]
[1730732671190,0.0814626,2451.6,2451.0,4.07991]
[1730732671354,4.07932,2451.4,2450.9,4.90303]
[1730732671550,4.079,2451.6,2451.0,4.07996]
[1730732671752,4.1606626,2451.5,2451.0,4.07996]
[1730732672696,0.0814626,2451.5,2451.1,4.30952876]
[1730732672857,4.1602726,2451.7,2451.2,4.07962]
[1730732673405,0.0814626,2451.7,2451.3,0.22998237]
[1730732673550,4.9145426,2451.9,2451.4,4.0792]
[1730732673887,4.07866,2451.8,2451.2,4.07953]
[1730732674091,4.1602726,2451.7,2451.3,0.22998536]
[1730732674290,4.1602726,2451.7,2451.4,0.22998536]
[1730732674506,0.793,2452.2,2451.3,0.0815801]
[1730732674703,4.1597226,2452.1,2451.4,5.11057059]
[1730732674990,4.1597226,2452.1,2451.6,4.07893]
[1730732674991,8.73326486,2452.1,2451.6,4.07893]
[1730732675193,4.87098,2452.2,2451.7,4.30897059]
[1730732675551,4.9524426,2452.2,2451.8,0.23027059]
[1730732675692,4.1595126,2452.2,2451.8,0.23027059]
[1730732675893,4.89517,2452.5,2451.9,0.23027059]
[1730732676196,4.1591126,2452.4,2452.0,0.23027059]
[1730732676396,8.15514,2452.5,2452.1,0.23027059]
[1730732676694,8.15514,2452.5,2452.2,0.23027059]
[1730732676695,4.1592226,2452.4,2452.2,0.23027059]
[1730732676880,4.1592226,2452.4,2452.3,0.23027059]
[1730732677202,4.07756,2452.5,2452.3,0.23027059]
[1730732677396,4.0778,2452.3,2452.1,0.36937645]
[1730732677560,4.0778,2452.3,2452.2,0.2309126]
[1730732677897,0.7927,2452.3,2452.2,0.23091799]
[1730732678102,4.07761,2452.5,2452.2,0.23093324]
[1730732678284,4.1591126,2452.4,2452.3,0.23093324]
[1730732678458,0.0814626,2452.4,2452.3,0.23093324]
[1730732678658,0.0814626,2452.5,2452.3,0.23093324]
[1730732678897,0.0814626,2452.5,2452.4,0.23093324]
[1730732678898,4.7089726,2452.5,2452.4,0.23093324]
[1730732679198,4.62788,2452.3,2451.9,0.60062197]
[1730732679406,0.55,2452.6,2452.1,4.07813]
[1730732679592,0.0814626,2452.5,2452.2,0.60081308]
[1730732679915,0.0814626,2452.5,2452.3,0.60081308]
[1730732680064,4.84259,2452.8,2452.4,0.2310048]
[1730732680267,4.07675,2453.0,2452.5,0.2310048]
[1730732680466,4.07675,2453.0,2452.6,0.2310048]
[1730732680467,4.1583326,2452.9,2452.6,0.2310048]
[1730732680702,4.1583326,2452.9,2452.7,0.2310048]
[1730732680906,0.0814626,2452.9,2452.8,0.23114001]
[1730732681065,4.1582126,2453.0,2452.8,0.23114001]
[1730732681409,0.0814626,2453.0,2452.6,4.0773]
[1730732681568,0.0814626,2453.0,2452.7,0.23113927]
[1730732681763,0.0814626,2453.0,2452.8,0.23113927]
[1730732682004,0.0814626,2453.1,2452.9,0.23113927]
[1730732682310,0.0814626,2453.3,2453.0,0.60093692]
[1730732682494,4.07589,2453.5,2453.1,0.60093692]
[1730732682696,0.0814626,2453.4,2453.2,0.23113927]
[1730732682894,0.0814626,2453.4,2452.6,4.46221731]
[1730732682895,4.07633,2453.2,2452.6,4.46221731]
[1730732683067,4.1580626,2453.1,2452.7,0.6006735]
[1730732683268,4.07664,2453.0,2452.8,0.6006735]
[1730732683468,4.07664,2453.0,2452.9,0.6006735]
[1730732683973,4.07664,2453.0,2452.9,0.23103178]
[1730732684170,4.9734136,2453.0,2452.9,0.23103178]
[1730732684411,4.9734136,2453.0,2452.5,4.89506]
[1730732684570,4.9734836,2453.0,2452.6,0.23096937]
[1730732684773,4.1581726,2453.0,2452.7,0.23096937]
[1730732684974,4.1581726,2453.0,2452.8,0.36955096]
[1730732684975,4.0768,2452.9,2452.8,0.36955096]
[1730732685174,4.1582626,2452.9,2452.8,0.23096937]
[1730732686267,4.07714,2452.7,2452.3,4.07779]
[1730732686471,0.0814626,2452.7,2452.4,0.60064471]
[1730732686667,4.1586726,2452.7,2452.5,0.60064471]
[1730732686899,4.1586726,2452.7,2452.6,0.2310103]
[1730732687888,6.33383886,2452.7,2452.6,0.2310103]
[1730732688073,0.55,2452.6,2452.0,4.07822]
[1730732688318,5.78388886,2452.7,2451.9,0.38501449]
[1730732688319,5.70242626,2452.7,2452.2,4.07788]
[1730732688476,0.0814626,2452.6,2452.2,4.07788]
[1730732688680,0.0814626,2452.6,2452.3,0.23103147]
[1730732688996,4.07662,2453.1,2452.6,4.07717]
[1730732689177,4.07681,2452.9,2452.7,0.23103147]
[1730732689494,4.07681,2452.9,2452.8,0.23099753]
[1730732689810,0.0814626,2453.0,2452.8,0.2310011]
[1730732690020,4.82801,2453.3,2452.9,0.2310011]
[1730732690177,4.82801,2453.3,2452.8,4.07685]
[1730732690375,4.82801,2453.3,2452.9,0.23097668]
[1730732690376,0.0814626,2453.2,2452.9,0.23097668]
[1730732690624,0.0814626,2453.2,2453.0,0.23097668]
[1730732690781,0.0814626,2453.2,2452.8,4.07685]
[1730732691113,4.1578126,2453.2,2452.9,0.23094563]
[1730732691278,4.1578126,2453.2,2453.0,0.23094563]
[1730732691473,8.81502779,2453.2,2452.8,0.36950077]
[1730732691707,8.73356519,2453.2,2452.9,0.23092898]
[1730732692017,0.0814626,2453.1,2453.0,0.23092898]
[1730732692178,4.1579326,2453.1,2453.0,0.23092898]
[1730732693402,4.7079326,2453.1,2453.0,0.23092898]
[1730732693602,4.07683,2452.9,2452.4,0.8271]
[1730732693912,4.1585426,2452.8,2452.5,0.60039938]
[1730732694118,4.07714,2452.7,2452.6,0.23091594]
[1730732694563,0.0814626,2453.0,2452.6,0.23091594]
[1730732694705,4.1582026,2453.0,2452.7,0.23091594]
[1730732695014,4.49277026,2452.9,2452.4,4.07752]
[1730732695224,0.0814626,2452.8,2452.5,4.67801315]
[1730732695424,0.0814626,2452.8,2452.6,0.60055315]
[1730732695631,0.0814626,2452.8,2452.7,0.23097508]
[1730732696347,4.1584326,2452.8,2452.7,0.23097508]
[1730732696841,5.53194286,2452.8,2452.7,0.23097508]
[1730732697944,0.0814626,2452.8,2452.7,0.23097508]
[1730732698260,0.0814626,2453.1,2452.7,0.60067127]
[1730732698548,0.0814626,2453.1,2452.8,4.30793508]
[1730732698841,0.0814626,2453.1,2452.3,4.46287798]
[1730732698842,4.89656,2453.0,2452.9,0.23097508]
[1730732699064,4.07747,2452.5,2452.4,0.60071609]
[1730732699243,4.07747,2452.5,2452.4,0.23102891]
[1730732699244,5.5288326,2452.5,2452.4,0.23102891]
[1730732699415,4.07784,2452.3,2452.1,0.2695021]
[1730732699760,4.1594326,2452.2,2452.1,0.2695021]
[1730732700040,0.0814626,2452.2,2452.1,0.87024853]
[1730732700244,4.1594326,2452.2,2452.1,0.87023596]
[1730732700451,4.07772,2452.4,2452.1,0.50054668]
[1730732700618,4.07772,2452.4,2452.2,0.23104458]
[1730732700619,4.1591826,2452.4,2452.2,0.23104458]
[1730732700819,4.07789,2452.3,2452.1,0.2695021]
[1730732701027,0.0814626,2452.2,2452.1,0.2695021]
[1730732701224,4.1594326,2452.2,2452.1,0.50060801]
[1730732701437,4.1594326,2452.2,2452.1,0.2695021]
[1730732701438,5.53316486,2452.2,2452.1,0.2695021]
[1730732702408,4.07797,2452.2,2452.1,0.2695021]
[1730732702609,4.7094326,2452.2,2452.1,0.2695021]
[1730732702855,0.0814626,2452.2,2452.1,0.2695021]
[1730732703554,0.0814626,2452.4,2452.1,4.57897591]
[1730732703712,0.0814626,2452.4,2452.2,0.23135381]
[1730732703907,0.0814626,2452.4,2452.1,0.2695021]
[1730732703908,4.07788,2452.3,2452.1,0.2695021]
[1730732704207,4.1594326,2452.2,2452.1,0.2695021]
[1730732704408,4.9877326,2452.2,2452.1,0.2695021]
[1730732704942,5.5377326,2452.2,2452.1,0.2695021]
[1730732706427,6.37754224,2452.2,2452.1,0.2695021]
[1730732706756,8.6890282,2452.2,2452.1,0.2695021]
[1730732707052,8.6075656,2452.2,2452.1,0.2695021]
[1730732707221,8.19448927,2452.2,2452.1,0.2695021]
[1730732707610,4.62815,2452.1,2451.7,0.23130796]
[1730732707858,4.1598826,2452.0,2451.6,0.23131541]
[1730732708018,0.0814626,2452.0,2451.7,0.23131541]
[1730732708359,0.55,2452.1,2451.7,4.86981]
[1730732708646,0.55,2452.1,2451.7,0.7911]
[1730732708647,0.0814626,2452.0,2451.7,0.7911]
[1730732708853,4.07862,2451.9,2451.7,0.7911]
[1730732709024,4.07862,2451.9,2451.5,0.23128488]
[1730732709214,4.07889,2451.7,2451.3,0.42594552]
[1730732709416,0.0814626,2451.7,2451.4,0.23127203]
[1730732709723,4.07863,2451.8,2451.5,0.23127494]
[1730732709724,4.1600926,2451.8,2451.5,0.23127494]
[1730732710139,4.1600926,2451.8,2451.4,0.23127494]
[1730732710343,4.07922,2451.5,2451.4,0.23120113]
[1730732710559,4.07946,2451.3,2451.2,0.23120113]
[1730732710713,4.07946,2451.3,2451.1,0.23120113]
[1730732711055,0.0814626,2451.2,2450.9,0.23120828]
[1730732711217,4.1611126,2451.2,2451.0,0.23120828]
[1730732711414,4.1611126,2451.2,2450.9,0.23107558]
[1730732711415,0.0814626,2451.2,2450.9,0.23107558]
[1730732711750,8.15887,2451.4,2450.9,4.31112558]
[1730732711751,4.1609726,2451.3,2450.9,4.31112558]
[1730732712059,4.1609726,2451.3,2450.8,0.827]
[1730732712060,4.07965,2451.2,2450.8,0.827]
[1730732712217,0.0814626,2451.3,2450.8,5.13833696]
[1730732712421,0.0814626,2451.3,2451.0,4.07987]
[1730732712660,0.0814626,2451.3,2450.8,0.827]
[1730732712818,4.08014,2450.9,2450.7,0.23100753]
[1730732713019,0.0814626,2450.8,2450.7,0.23100753]
[1730732713249,0.0814626,2450.8,2450.6,0.65713369]
[1730732713438,0.0814626,2450.8,2450.5,0.7928]
[1730732713759,4.1617626,2450.8,2450.5,1.02371508]
[1730732713961,4.08051,2450.7,2450.5,0.7928]
[1730732714164,4.08051,2450.7,2450.3,4.31199816]
[1730732714318,0.0814626,2450.6,2450.3,4.08113]
[1730732714514,4.0803,2450.8,2450.4,4.08094]
[1730732714718,0.0814626,2450.7,2450.3,4.08113]
[1730732714919,0.0814626,2450.7,2450.3,4.08105]
[1730732715319,0.0814626,2450.7,2450.3,4.08104]
[1730732715763,4.1620826,2450.7,2450.2,5.33437047]
[1730732715918,4.08071,2450.6,2450.2,0.42589047]
[1730732716120,4.08113,2450.3,2450.2,0.42589047]
[1730732716370,0.6314626,2450.3,2449.8,0.23066707]
[1730732716519,4.08143,2450.2,2449.7,0.23048018]
[1730732716723,4.08143,2450.2,2449.7,4.08213]
[1730732716724,0.0814626,2450.1,2449.7,4.08213]
[1730732717156,0.8477626,2450.1,2449.6,4.08216]
[1730732717358,0.8477626,2450.1,2449.7,4.08204]
[1730732717561,4.9292326,2450.1,2449.7,4.08204]
[1730732717726,4.08173,2450.0,2449.5,4.08239]
[1730732717925,0.0814626,2449.9,2449.5,4.08239]
[1730732718125,0.0814626,2450.0,2449.6,4.08221]
[1730732718373,0.0814626,2450.0,2449.7,4.08203]
[1730732718739,0.0814626,2450.0,2449.7,4.08201]
[1730732719143,0.0814626,2450.0,2449.5,8.16492]
[1730732719374,4.91342,2450.6,2450.1,4.08131]
[1730732719683,0.0814626,2450.5,2449.8,4.08182]
[1730732719889,0.0814626,2450.5,2450.1,4.08141]
[1730732720091,4.1622826,2450.5,2450.1,4.08141]
[1730732720241,8.2431926,2450.5,2450.0,4.08162]
[1730732720437,4.08082,2450.5,2450.0,4.08162]
[1730732720685,0.55,2450.4,2450.0,4.08151]
[1730732720889,0.0814626,2450.3,2450.1,4.08143]
[1730732721181,0.0814626,2450.5,2450.2,4.08122]
[1730732721385,0.6314626,2450.6,2450.3,4.08111]
[1730732721541,0.6314626,2450.6,2450.2,4.08128]
[1730732721745,4.1621826,2450.6,2450.1,4.91396]
[1730732721946,4.0808,2450.5,2450.1,4.91396]
[1730732722149,4.0808,2450.5,2449.5,4.60540007]
[1730732722150,4.1625026,2450.4,2449.9,4.08164]
[1730732722585,0.90579286,2450.4,2450.0,4.08156]
[1730732722888,0.0814626,2450.4,2450.0,4.08156]
[1730732723782,0.55,2450.1,2449.5,0.8155]
[1730732723954,4.08213,2449.7,2449.4,0.06123134]
[1730732724161,0.0814626,2449.6,2449.4,0.06123134]
[1730732724362,4.1638326,2449.6,2449.4,0.48633445]
[1730732724563,4.1638326,2449.6,2449.4,0.06123134]
[1730732724765,4.08271,2449.4,2449.1,0.0604162]
[1730732724949,0.0814626,2449.3,2449.1,0.0604162]
[1730732725185,0.0814626,2449.4,2449.1,0.0604162]
[1730732725488,4.08172,2450.0,2449.1,0.14207792]
[1730732725489,4.87734,2450.0,2449.1,0.14207792]
[1730732725694,0.55,2449.8,2449.5,4.08244]
[1730732725901,0.0814626,2450.0,2449.3,4.08279]
[1730732726106,0.7719,2450.2,2450.0,4.08163]
[1730732726388,4.081,2450.4,2449.8,4.87896]
[1730732726565,0.57489886,2450.3,2449.9,4.08178]
[1730732726894,0.0814626,2450.5,2450.3,4.081]
[1730732727079,0.0814626,2450.7,2450.1,4.08139]
[1730732727392,0.0814626,2450.7,2450.2,4.08116]
[1730732727599,0.0814626,2450.7,2450.3,4.08108]
[1730732728398,0.0814626,2450.7,2450.2,4.08116]
[1730732728696,0.0814626,2450.7,2450.3,4.08113]
[1730732728859,0.0814626,2450.7,2450.4,4.08083]
[1730732729062,0.7719,2450.8,2449.8,5.40250007]
[1730732729063,4.9337526,2450.8,2450.3,4.0811]
[1730732729256,0.8533626,2450.8,2450.5,4.08077]
[1730732729755,1.34670686,2450.8,2449.8,0.7971]
[1730732729960,4.8925,2450.3,2449.8,4.08188]
[1730732730182,4.8925,2450.3,2449.9,0.23040344]
[1730732730183,0.0814626,2450.2,2449.9,0.23040344]
[1730732730401,0.0814626,2450.2,2449.6,4.87757]
[1730732730703,8.1631,2450.1,2449.6,4.08217]
[1730732730903,8.1631,2450.1,2449.2,8.68829007]
[1730732730904,0.55,2449.9,2449.3,0.7636]
[1730732731084,4.9211426,2449.8,2449.3,4.31324662]
[1730732731392,4.1635926,2449.7,2449.4,0.23052662]
[1730732731598,4.1635926,2449.7,2449.3,4.08272]
[1730732731599,4.08213,2449.7,2449.3,4.08272]
[1730732731799,0.0814626,2449.6,2449.3,4.08272]
[1730732732033,0.104466,2449.5,2449.3,4.08272]
[1730732732239,0.0814626,2449.7,2449.4,4.08263]
[1730732732536,0.0814626,2449.7,2449.3,4.08278]
[1730732732537,0.10404995,2449.6,2449.3,4.08278]
[1730732732704,0.10404995,2449.6,2449.4,4.08262]
[1730732732902,0.10404995,2449.6,2449.3,4.08278]
[1730732733302,0.10404995,2449.6,2449.4,4.08253]
[1730732733615,0.10404995,2449.6,2449.4,4.08254]
[1730732734107,0.10404995,2449.6,2449.3,4.08271]
[1730732734306,0.10404995,2449.6,2449.4,0.23052623]
[1730732734521,0.10404995,2449.6,2449.4,4.08251]
[1730732734847,4.08264,2449.4,2449.1,0.0604162]
[1730732735003,0.18518573,2449.3,2449.2,0.23061034]
[1730732735194,0.18518573,2449.3,2449.1,0.0604162]
[1730732735195,4.26797573,2449.3,2449.1,0.0604162]
[1730732735390,5.59377573,2449.3,2449.1,0.0604162]
[1730732735789,1.51098573,2449.3,2449.1,0.0604162]
[1730732736436,5.59380573,2449.3,2449.1,0.0604162]
[1730732736630,6.6033162,2449.3,2449.1,0.0604162]
[1730732736990,2.5204962,2449.3,2449.1,0.0604162]
[1730732737436,4.08296,2449.2,2449.1,0.0604162]
[1730732737619,0.10353628,2449.2,2449.1,0.29113492]
[1730732737942,4.08296,2449.2,2449.1,0.29113492]
[1730732738094,1.16193443,2449.2,2449.1,0.29113492]
[1730732738294,0.10367912,2449.2,2449.1,0.29113492]
[1730732738725,0.6314626,2449.3,2449.1,0.29113492]
[1730732738916,0.6314626,2449.3,2449.2,0.23071872]
[1730732740306,0.6314626,2449.3,2449.2,0.60046068]
[1730732740507,0.0814626,2449.5,2449.4,4.08263]
[1730732740706,0.0814626,2449.5,2449.4,0.60042737]
[1730732740906,0.0814626,2449.5,2449.1,4.1433962]
[1730732741158,0.0814626,2449.5,2449.2,0.6007608]
[1730732741445,0.0814626,2449.5,2449.3,0.6007608]
[1730732741599,0.0814626,2449.5,2449.4,0.6007608]
[1730732743311,4.63213,2449.7,2449.4,0.6007608]
[1730732743547,0.0814626,2449.6,2449.5,0.6007608]
[1730732744313,5.4657526,2449.6,2449.5,0.6007608]
[1730732744548,5.4657526,2449.6,2449.5,0.23105496]
[1730732744752,4.08273,2449.4,2449.1,0.0604162]
[1730732744923,0.0814626,2449.3,2449.2,0.23149615]
[1730732745128,0.6314626,2449.3,2449.2,0.60191162]
[1730732745324,4.7142526,2449.3,2449.2,0.60191162]
[1730732745526,0.6314626,2449.3,2449.2,0.60191162]
[1730732745867,0.0814626,2449.5,2449.2,4.68475162]
[1730732746024,0.7529,2449.8,2449.3,4.68467162]
[1730732746229,0.0814626,2450.0,2449.4,0.60191162]
[1730732746454,0.7529,2450.1,2449.8,4.08185]
[1730732746655,0.0814626,2450.2,2449.9,0.60202049]
[1730732746924,0.0814626,2450.2,2450.0,0.23149615]
[1730732746925,4.1627626,2450.2,2450.0,0.23149615]
[1730732747155,5.06243786,2450.2,2450.1,0.23149615]
[1730732747462,0.0814626,2450.2,2450.1,0.23149615]
[1730732747659,4.1626726,2450.3,2450.1,0.6020162]
[1730732747823,4.1626726,2450.3,2450.2,0.23149615]
[1730732748025,0.0814626,2450.3,2450.2,0.23149615]
[1730732748370,0.0814626,2450.3,2450.2,0.60203407]
[1730732748371,4.1627426,2450.3,2450.2,0.60203407]
[1730732748573,5.06240686,2450.3,2450.2,0.23154467]
[1730732748871,5.61240686,2450.3,2450.2,0.23154467]
[1730732749360,1.53112686,2450.3,2449.6,4.08218]
[1730732749660,4.08156,2450.1,2449.7,0.60219532]
[1730732749865,0.0814626,2450.0,2449.8,0.60219532]
[1730732750034,0.0814626,2450.0,2449.9,0.60219532]
[1730732750359,4.1630926,2450.0,2449.9,0.60219532]
[1730732750729,0.0814626,2450.0,2449.9,0.60219532]
[1730732751753,0.0814626,2450.0,2449.9,0.60239518]
[1730732751982,5.18439486,2450.0,2449.9,0.60239518]
[1730732752169,5.18439486,2450.0,2449.9,0.60239398]
[1730732752649,1.91606486,2450.0,2449.9,0.60239398]
[1730732752971,0.55,2450.1,2449.9,4.68437577]
[1730732753264,0.55,2450.1,2449.3,0.8295]
[1730732753265,0.0814626,2450.2,2450.0,4.68418577]
[1730732753429,0.6314626,2450.4,2450.1,0.23175685]
[1730732753629,0.65020453,2450.3,2450.2,0.23175685]
[1730732754537,4.73133453,2450.3,2450.2,0.23175685]
[1730732754741,5.70205124,2450.3,2450.2,0.23175685]
[1730732754942,5.78351384,2450.3,2450.2,0.23175685]
[1730732755176,2.47088384,2450.3,2449.4,4.08254]
[1730732755405,4.60540007,2449.8,2449.1,0.0604162]
[1730732755552,4.0829,2449.3,2449.1,0.0604162]
[1730732755739,4.6329,2449.3,2449.2,0.60275238]
[1730732756381,5.504456,2449.3,2449.2,0.60275238]
[1730732757147,4.6329,2449.3,2449.2,0.60275238]
[1730732757356,0.55,2449.3,2449.2,0.60275238]
[1730732757781,4.7142526,2449.3,2449.2,0.60275238]
[1730732758738,4.7142526,2449.3,2449.2,0.60295561]
[1730732759371,0.6314626,2449.3,2449.2,0.60295561]
[1730732759593,4.85075,2449.7,2449.3,4.0827]
[1730732759883,0.0814626,2449.6,2449.4,0.60295561]
[1730732760084,0.0814626,2449.6,2449.5,0.60295561]
[1730732760581,4.83252,2450.2,2449.6,4.08222]
[1730732760879,0.0814626,2450.3,2449.9,4.08164]
[1730732761091,0.0814626,2450.5,2450.2,4.08129]
[1730732761243,0.0814626,2450.5,2450.3,0.23189909]
[1730732761440,0.0814626,2450.5,2449.7,4.83632]
[1730732761441,0.0814626,2450.5,2450.2,4.08129]
[1730732761646,0.0814626,2450.5,2450.3,0.23203296]
[1730732761839,0.0814626,2450.5,2450.4,0.23203296]
[1730732762153,0.0814626,2450.5,2450.4,0.23199237]
[1730732762354,0.0814626,2450.7,2450.4,0.23199237]
[1730732762541,0.0814626,2450.7,2450.5,0.23199237]
[1730732762737,0.58078786,2450.7,2450.0,4.0815]
[1730732762975,4.1620326,2450.7,2450.1,0.60302788]
[1730732763181,0.7876,2451.1,2450.6,4.08052]
[1730732763350,0.7876,2451.1,2450.7,0.23192689]
[1730732763351,0.0814626,2451.0,2450.7,0.23192689]
[1730732763552,0.0814626,2451.0,2450.2,4.86377]
[1730732763553,4.08013,2450.9,2450.8,0.23192689]
[1730732763737,4.08013,2450.9,2450.5,4.45163666]
[1730732763942,0.0814626,2451.1,2450.7,4.08046]
[1730732764144,0.0814626,2451.1,2450.8,0.23177958]
[1730732764441,5.33887447,2451.5,2450.9,4.31156704]
[1730732764442,0.0814626,2451.4,2450.9,4.31156704]
[1730732764674,0.49213226,2451.4,2451.0,4.31137406]
[1730732764985,0.0814626,2451.3,2451.0,4.07982]
[1730732765202,0.0814626,2451.5,2451.1,4.0797]
[1730732765404,0.0814626,2451.5,2450.8,0.45172989]
[1730732765405,0.0814626,2451.8,2451.4,4.07921]
[1730732765679,4.85598,2451.9,2451.4,4.07921]
[1730732765680,0.7774,2452.2,2451.8,4.07847]
[1730732765983,4.1596126,2452.1,2451.6,4.0788]
[1730732766280,4.1596126,2452.1,2451.5,0.8232]
[1730732766281,8.2380126,2452.1,2451.5,4.90232]
[1730732766492,4.07816,2452.1,2451.6,4.07893]
[1730732766671,0.0814626,2452.0,2451.6,4.07893]
[1730732766873,0.0814626,2452.0,2451.5,4.90221]
[1730732767050,0.0814626,2452.3,2451.7,4.07871]
[1730732767395,0.0814626,2452.3,2452.0,4.07828]
[1730732767742,4.1591426,2452.4,2451.9,4.07845]
[1730732767943,0.0814626,2452.4,2451.9,4.07845]
[1730732768144,4.0779,2452.3,2451.7,8.1574]
[1730732768391,4.0779,2452.3,2451.8,4.07859]
[1730732768691,0.15659104,2452.2,2451.7,4.0787]
[1730732768981,0.07512844,2452.2,2451.8,4.07863]
[1730732769342,0.55,2452.1,2451.7,4.07876]
[1730732769555,0.70658356,2452.1,2451.7,4.07876]
[1730732769750,0.70658356,2452.1,2451.6,4.07896]
[1730732769751,0.07512096,2452.1,2451.6,4.07896]
[1730732769958,0.07512096,2452.1,2452.0,4.0783]
[1730732770203,4.1588526,2452.6,2452.0,4.0783]
[1730732770491,0.07397659,2452.5,2452.3,4.07765]
[1730732770663,0.07397659,2452.5,2452.4,4.07763]
[1730732770991,0.0814626,2452.9,2452.4,4.07763]
[1730732771296,0.07152078,2452.8,2452.4,4.07763]
[1730732771752,0.07152078,2452.8,2452.3,8.1555]
[1730732772502,0.07152078,2452.8,2452.7,4.07713]
[1730732772696,4.89655,2453.3,2452.7,4.15866427]
[1730732772880,4.89655,2453.3,2452.3,0.775]
[1730732772881,4.07673,2453.0,2452.5,4.07744]
[1730732773209,0.1484655,2452.9,2452.3,4.8527]
[1730732773353,0.0670029,2452.9,2452.6,4.07729]
[1730732773686,0.0670029,2452.9,2452.5,4.07731]
[1730732774286,4.1438929,2452.9,2452.3,4.85267]
[1730732774493,4.1438929,2452.9,2452.4,4.07755]
[1730732774654,5.04741079,2452.9,2452.3,4.85267]
[1730732775159,5.04741079,2452.9,2452.4,4.07752]
[1730732775357,4.2253555,2452.9,2452.4,4.07752]
[1730732776171,0.1484655,2452.9,2452.5,4.07747]
[1730732776357,0.0670029,2452.9,2452.5,4.07738]